[Event "Titled Tuesday Blitz January 31 Late 2023"]
[White "Hansen, Eric"]
[Black "Dominguez Perez, Leinier"]
[WhiteFideId "2606771"]
[BlackFideId "3503240"]
[WhiteElo "2609"]
[BlackElo "2739"]
[Result "1/2-1/2"]
[Round "08"]
[TimeControl "180+2"]
[Date "2023.01.31"]
[WhiteClock "0:00:02"]
[BlackClock "0:00:04"]

1. e4 {[%clk 0:03:00]}  Nf6 {[%clk 0:03:00]} 2. e5 {[%clk 0:02:59]}  Nd5 {[%clk 0:03:01]} 3. c4 {[%clk 0:03:00]}  Nb6 {[%clk 0:03:01]} 4. d4 {[%clk 0:03:01]}  d6 {[%clk 0:03:01]} 5. exd6 {[%clk 0:03:01]}  exd6 {[%clk 0:03:02]} 6. Bd3 {[%clk 0:02:58]}  Be7 {[%clk 0:03:02]} 7. Ne2 {[%clk 0:02:58]}  O-O {[%clk 0:03:02]} 8. O-O {[%clk 0:02:58]}  Na6 {[%clk 0:03:02]} 9. Nbc3 {[%clk 0:02:52]}  c6 {[%clk 0:03:01]} 10. Ng3 {[%clk 0:02:43]}  Nb4 {[%clk 0:02:52]} 11. Bb1 {[%clk 0:02:43]}  d5 {[%clk 0:02:51]} 12. c5 {[%clk 0:02:41]}  Nd7 {[%clk 0:02:51]} 13. Nf5 {[%clk 0:02:35]}  Bf6 {[%clk 0:02:37]} 14. Bf4 {[%clk 0:02:31]}  g6 {[%clk 0:02:33]} 15. Nh6+ {[%clk 0:02:21]}  Kh8 {[%clk 0:02:28]} 16. Re1 {[%clk 0:02:09]}  Bg7 {[%clk 0:02:09]} 17. Qd2 {[%clk 0:02:04]}  b6 {[%clk 0:01:43]} 18. Bd6 {[%clk 0:01:50]}  bxc5 {[%clk 0:01:37]} 19. dxc5 {[%clk 0:01:49]}  Nf6 {[%clk 0:01:02]} 20. Be7 {[%clk 0:01:14]}  Qc7 {[%clk 0:01:01]} 21. Qg5 {[%clk 0:01:03]}  Re8 {[%clk 0:00:36]} 22. Qxf6 {[%clk 0:00:59]}  Be6 {[%clk 0:00:25]} 23. Nxf7+ {[%clk 0:00:52]}  Bxf7 {[%clk 0:00:25]} 24. Qxf7 {[%clk 0:00:52]}  d4 {[%clk 0:00:25]} 25. Bxg6 {[%clk 0:00:44]}  dxc3 {[%clk 0:00:20]} 26. bxc3 {[%clk 0:00:23]}  Nd5 {[%clk 0:00:18]} 27. Bd6 {[%clk 0:00:19]}  Qxf7 {[%clk 0:00:05]} 28. Bxf7 {[%clk 0:00:20]}  Rxe1+ {[%clk 0:00:05]} 29. Rxe1 {[%clk 0:00:20]}  Nxc3 {[%clk 0:00:05]} 30. h4 {[%clk 0:00:13]}  Nb5 {[%clk 0:00:03]} 31. Bg3 {[%clk 0:00:10]}  Nd4 {[%clk 0:00:03]} 32. h5 {[%clk 0:00:06]}  Nf5 {[%clk 0:00:02]} 33. Bf4 {[%clk 0:00:04]}  Bd4 {[%clk 0:00:02]} 34. g4 {[%clk 0:00:04]}  Rf8 {[%clk 0:00:02]} 35. Bb3 {[%clk 0:00:03]}  Nh4 {[%clk 0:00:02]} 36. Bg3 {[%clk 0:00:03]}  Nf3+ {[%clk 0:00:02]} 37. Kf1 {[%clk 0:00:03]}  Nxe1 {[%clk 0:00:03]} 38. Kxe1 {[%clk 0:00:04]}  Re8+ {[%clk 0:00:02]} 39. Kd2 {[%clk 0:00:05]}  Bxc5 {[%clk 0:00:02]} 40. Kd3 {[%clk 0:00:05]}  Bf8 {[%clk 0:00:02]} 41. g5 {[%clk 0:00:05]}  h6 {[%clk 0:00:03]} 42. g6 {[%clk 0:00:05]}  Bg7 {[%clk 0:00:03]} 43. Bf4 {[%clk 0:00:05]}  Rf8 {[%clk 0:00:03]} 44. Be3 {[%clk 0:00:05]}  Rf5 {[%clk 0:00:04]} 45. Bd1 {[%clk 0:00:03]}  Ra5 {[%clk 0:00:04]} 46. Bf3 {[%clk 0:00:02]}  Rxa2 {[%clk 0:00:03]} 47. Bxc6 {[%clk 0:00:02]}  a5 {[%clk 0:00:04]} 48. Kc4 {[%clk 0:00:02]}  a4 {[%clk 0:00:04]} 49. Kb4 {[%clk 0:00:02]}  a3 {[%clk 0:00:05]} 50. Kb3 {[%clk 0:00:03]}  Ra1 {[%clk 0:00:05]} 51. Be4 {[%clk 0:00:02]}  a2 {[%clk 0:00:06]} 52. Ka3 {[%clk 0:00:01]}  Bf8+ {[%clk 0:00:05]} 53. Kb3 {[%clk 0:00:01]}  Bg7 {[%clk 0:00:06]} 54. Ka3 {[%clk 0:00:02]}  Kg8 {[%clk 0:00:04]} 55. Bd5+ {[%clk 0:00:02]}  Kh8 {[%clk 0:00:04]} 56. Be4 {[%clk 0:00:02]} 1/2-1/2


[Site "https://www.chess.com"]

[Event "Titled Tuesday Blitz January 31 Late 2023"]
[White "Zierk, Steven"]
[Black "Jobava, Baadur"]
[WhiteFideId "2034255"]
[BlackFideId "13601520"]
[WhiteElo "2488"]
[BlackElo "2578"]
[Result "1-0"]
[Round "08"]
[TimeControl "180+2"]
[Date "2023.01.31"]
[WhiteClock "0:00:06"]
[BlackClock "0:00:06"]

1. e4 {[%clk 0:02:57]}  d6 {[%clk 0:03:00]} 2. d4 {[%clk 0:02:56]}  Nf6 {[%clk 0:03:00]} 3. Nc3 {[%clk 0:02:56]}  e5 {[%clk 0:03:01]} 4. Nf3 {[%clk 0:02:55]}  Nbd7 {[%clk 0:03:01]} 5. Bc4 {[%clk 0:02:56]}  Be7 {[%clk 0:03:01]} 6. O-O {[%clk 0:02:56]}  O-O {[%clk 0:03:02]} 7. Re1 {[%clk 0:02:57]}  h6 {[%clk 0:03:01]} 8. a4 {[%clk 0:02:54]}  a5 {[%clk 0:03:01]} 9. h3 {[%clk 0:02:49]}  Re8 {[%clk 0:03:02]} 10. Nh4 {[%clk 0:02:32]}  exd4 {[%clk 0:02:53]} 11. Qxd4 {[%clk 0:02:29]}  Ne5 {[%clk 0:02:49]} 12. Ba2 {[%clk 0:02:27]}  Nh5 {[%clk 0:02:14]} 13. Nf5 {[%clk 0:02:22]}  Bxf5 {[%clk 0:02:10]} 14. exf5 {[%clk 0:02:23]}  c6 {[%clk 0:02:02]} 15. Be3 {[%clk 0:02:08]}  Nf6 {[%clk 0:01:58]} 16. Rad1 {[%clk 0:02:01]}  Ned7 {[%clk 0:01:57]} 17. g4 {[%clk 0:01:33]}  d5 {[%clk 0:01:56]} 18. Kg2 {[%clk 0:01:33]}  Bc5 {[%clk 0:01:53]} 19. Qf4 {[%clk 0:01:32]}  Bxe3 {[%clk 0:01:47]} 20. Rxe3 {[%clk 0:01:31]}  Qb6 {[%clk 0:01:44]} 21. Qd4 {[%clk 0:01:14]}  Qb4 {[%clk 0:01:28]} 22. Ne2 {[%clk 0:00:55]}  Rxe3 {[%clk 0:01:24]} 23. fxe3 {[%clk 0:00:52]}  Re8 {[%clk 0:01:23]} 24. Qxb4 {[%clk 0:00:48]}  axb4 {[%clk 0:01:23]} 25. Kf3 {[%clk 0:00:26]}  Ne5+ {[%clk 0:01:10]} 26. Kf4 {[%clk 0:00:25]}  Ne4 {[%clk 0:01:08]} 27. Bxd5 {[%clk 0:00:12]}  Nf2 {[%clk 0:00:07]} 28. Rf1 {[%clk 0:00:07]}  Nxh3+ {[%clk 0:00:06]} 29. Kg3 {[%clk 0:00:07]}  cxd5 {[%clk 0:00:05]} 30. Kxh3 {[%clk 0:00:06]}  Nc4 {[%clk 0:00:06]} 31. b3 {[%clk 0:00:05]}  Rxe3+ {[%clk 0:00:05]} 32. Ng3 {[%clk 0:00:04]}  Na3 {[%clk 0:00:05]} 33. Rd1 {[%clk 0:00:03]}  Nxc2 {[%clk 0:00:05]} 34. Rxd5 {[%clk 0:00:04]}  Rxb3 {[%clk 0:00:05]} 35. Rd8+ {[%clk 0:00:04]}  Kh7 {[%clk 0:00:05]} 36. Rd7 {[%clk 0:00:05]}  Ne3 {[%clk 0:00:04]} 37. Nh5 {[%clk 0:00:04]}  Nxf5+ {[%clk 0:00:04]} 38. Kh2 {[%clk 0:00:03]}  Ne3 {[%clk 0:00:02]} 39. Kg3 {[%clk 0:00:04]}  Nd5+ {[%clk 0:00:02]} 40. Kf2 {[%clk 0:00:03]}  Ne3 {[%clk 0:00:03]} 41. Kg3 {[%clk 0:00:03]}  Nf5+ {[%clk 0:00:03]} 42. Kf4 {[%clk 0:00:03]}  g5+ {[%clk 0:00:03]} 43. Kxf5 {[%clk 0:00:03]}  Rf3+ {[%clk 0:00:03]} 44. Ke4 {[%clk 0:00:03]}  Rf1 {[%clk 0:00:04]} 45. Rxb7 {[%clk 0:00:03]}  Re1+ {[%clk 0:00:03]} 46. Kf3 {[%clk 0:00:04]}  Rf1+ {[%clk 0:00:02]} 47. Ke2 {[%clk 0:00:04]}  Rg1 {[%clk 0:00:02]} 48. Rxf7+ {[%clk 0:00:04]}  Kg8 {[%clk 0:00:03]} 49. Rb7 {[%clk 0:00:04]}  Rg2+ {[%clk 0:00:03]} 50. Kf3 {[%clk 0:00:04]}  Rb2 {[%clk 0:00:04]} 51. Nf6+ {[%clk 0:00:04]}  Kf8 {[%clk 0:00:04]} 52. a5 {[%clk 0:00:05]}  b3 {[%clk 0:00:04]} 53. a6 {[%clk 0:00:05]}  Ra2 {[%clk 0:00:05]} 54. a7 {[%clk 0:00:05]}  b2 {[%clk 0:00:04]} 55. Nd7+ {[%clk 0:00:05]}  Ke7 {[%clk 0:00:04]} 56. Nb6+ {[%clk 0:00:04]}  Ke6 {[%clk 0:00:04]} 57. a8=Q {[%clk 0:00:05]}  b1=Q {[%clk 0:00:04]} 58. Qc8+ {[%clk 0:00:05]}  Kd6 {[%clk 0:00:04]} 59. Rd7+ {[%clk 0:00:04]}  Ke5 {[%clk 0:00:05]} 60. Qe8+ {[%clk 0:00:05]}  Kf6 {[%clk 0:00:05]} 61. Rf7+ {[%clk 0:00:06]}  Kg6 {[%clk 0:00:06]} 62. Qg8# {[%clk 0:00:06]} 1-0


[Site "https://www.chess.com"]

[Event "Titled Tuesday Blitz January 31 Late 2023"]
[White "Bortnyk, Olexandr"]
[Black "Kamsky, Gata"]
[WhiteFideId "14120828"]
[BlackFideId "2000024"]
[WhiteElo "2605"]
[BlackElo "2665"]
[Result "1/2-1/2"]
[Round "08"]
[TimeControl "180+2"]
[Date "2023.01.31"]
[WhiteClock "0:00:06"]
[BlackClock "0:00:14"]

1. e4 {[%clk 0:03:00]}  e5 {[%clk 0:02:48]} 2. Nf3 {[%clk 0:03:00]}  Nc6 {[%clk 0:02:48]} 3. Bb5 {[%clk 0:03:01]}  a6 {[%clk 0:02:46]} 4. Ba4 {[%clk 0:03:01]}  Nf6 {[%clk 0:02:46]} 5. Nc3 {[%clk 0:03:01]}  d6 {[%clk 0:02:33]} 6. d4 {[%clk 0:02:45]}  b5 {[%clk 0:02:29]} 7. dxe5 {[%clk 0:02:40]}  dxe5 {[%clk 0:02:18]} 8. Qxd8+ {[%clk 0:02:39]}  Nxd8 {[%clk 0:02:17]} 9. Bb3 {[%clk 0:02:39]}  Bd6 {[%clk 0:02:13]} 10. Bg5 {[%clk 0:02:32]}  c6 {[%clk 0:02:11]} 11. O-O-O {[%clk 0:02:30]}  Bc7 {[%clk 0:02:09]} 12. Bxf6 {[%clk 0:02:14]}  gxf6 {[%clk 0:02:08]} 13. Nh4 {[%clk 0:02:15]}  Ne6 {[%clk 0:02:00]} 14. Nf5 {[%clk 0:01:50]}  Nc5 {[%clk 0:01:57]} 15. Nh6 {[%clk 0:01:50]}  Be6 {[%clk 0:01:48]} 16. Bxe6 {[%clk 0:01:48]}  fxe6 {[%clk 0:01:46]} 17. b4 {[%clk 0:01:41]}  Nd7 {[%clk 0:01:42]} 18. Rd3 {[%clk 0:01:41]}  Nb6 {[%clk 0:01:37]} 19. Rhd1 {[%clk 0:01:31]}  a5 {[%clk 0:01:17]} 20. bxa5 {[%clk 0:00:49]}  Rxa5 {[%clk 0:01:15]} 21. Rg3 {[%clk 0:00:50]}  Kf8 {[%clk 0:01:12]} 22. Kb1 {[%clk 0:00:31]}  Ra8 {[%clk 0:01:09]} 23. Rdd3 {[%clk 0:00:29]}  Rc8 {[%clk 0:00:51]} 24. Ne2 {[%clk 0:00:28]}  Rd8 {[%clk 0:00:44]} 25. Nc1 {[%clk 0:00:18]}  Rxd3 {[%clk 0:00:43]} 26. Nxd3 {[%clk 0:00:19]}  Bd6 {[%clk 0:00:43]} 27. h4 {[%clk 0:00:12]}  Nc4 {[%clk 0:00:39]} 28. Kc1 {[%clk 0:00:13]}  Ke8 {[%clk 0:00:37]} 29. Kd1 {[%clk 0:00:04]}  Bf8 {[%clk 0:00:36]} 30. Ng4 {[%clk 0:00:04]}  Be7 {[%clk 0:00:34]} 31. h5 {[%clk 0:00:04]}  h6 {[%clk 0:00:26]} 32. Rf3 {[%clk 0:00:03]}  Rf8 {[%clk 0:00:23]} 33. Nxh6 {[%clk 0:00:03]}  f5 {[%clk 0:00:24]} 34. Rg3 {[%clk 0:00:01]}  fxe4 {[%clk 0:00:24]} 35. Ne1 {[%clk 0:00:01]}  Rxf2 {[%clk 0:00:23]} 36. Ng4 {[%clk 0:00:01]}  Rf5 {[%clk 0:00:23]} 37. h6 {[%clk 0:00:01]}  Rh5 {[%clk 0:00:22]} 38. Rh3 {[%clk 0:00:01]}  Rxh3 {[%clk 0:00:22]} 39. gxh3 {[%clk 0:00:02]}  Kf7 {[%clk 0:00:22]} 40. Ke2 {[%clk 0:00:03]}  Kg6 {[%clk 0:00:23]} 41. Ng2 {[%clk 0:00:03]}  Bg5 {[%clk 0:00:23]} 42. N2e3 {[%clk 0:00:03]}  Bxe3 {[%clk 0:00:22]} 43. Nxe3 {[%clk 0:00:03]}  Na3 {[%clk 0:00:22]} 44. Ng4 {[%clk 0:00:03]}  Nc4 {[%clk 0:00:22]} 45. h4 {[%clk 0:00:04]}  b4 {[%clk 0:00:19]} 46. h5+ {[%clk 0:00:03]}  Kh7 {[%clk 0:00:20]} 47. Kf2 {[%clk 0:00:04]}  c5 {[%clk 0:00:19]} 48. Ke2 {[%clk 0:00:05]}  Na3 {[%clk 0:00:18]} 49. Kd2 {[%clk 0:00:02]}  Nc4+ {[%clk 0:00:19]} 50. Kd1 {[%clk 0:00:03]}  Na3 {[%clk 0:00:18]} 51. Kc1 {[%clk 0:00:03]}  Nc4 {[%clk 0:00:17]} 52. Kd1 {[%clk 0:00:03]}  Nb2+ {[%clk 0:00:17]} 53. Ke2 {[%clk 0:00:03]}  Nc4 {[%clk 0:00:18]} 54. Ke1 {[%clk 0:00:02]}  Na3 {[%clk 0:00:18]} 55. Kd1 {[%clk 0:00:02]}  Nc4 {[%clk 0:00:18]} 56. Ke2 {[%clk 0:00:02]}  Na3 {[%clk 0:00:18]} 57. Kd2 {[%clk 0:00:02]}  Nc4+ {[%clk 0:00:18]} 58. Kc1 {[%clk 0:00:02]}  e3 {[%clk 0:00:14]} 59. Kd1 {[%clk 0:00:03]}  e4 {[%clk 0:00:14]} 60. Ke2 {[%clk 0:00:03]}  Na3 {[%clk 0:00:14]} 61. Nf6+ {[%clk 0:00:02]}  Kxh6 {[%clk 0:00:14]} 62. Nxe4 {[%clk 0:00:03]}  c4 {[%clk 0:00:14]} 63. Kxe3 {[%clk 0:00:02]}  Nxc2+ {[%clk 0:00:14]} 64. Kd2 {[%clk 0:00:03]}  Nd4 {[%clk 0:00:14]} 65. Nd6 {[%clk 0:00:03]}  c3+ {[%clk 0:00:13]} 66. Kd3 {[%clk 0:00:04]}  e5 {[%clk 0:00:14]} 67. Nc4 {[%clk 0:00:03]}  e4+ {[%clk 0:00:14]} 68. Ke3 {[%clk 0:00:04]}  Nf3 {[%clk 0:00:14]} 69. Nd6 {[%clk 0:00:03]}  Ng5 {[%clk 0:00:14]} 70. Nf5+ {[%clk 0:00:02]}  Kxh5 {[%clk 0:00:14]} 71. Nd4 {[%clk 0:00:03]}  Kg4 {[%clk 0:00:14]} 72. Nc2 {[%clk 0:00:03]}  Kf5 {[%clk 0:00:14]} 73. Nxb4 {[%clk 0:00:04]}  Nf3 {[%clk 0:00:13]} 74. a4 {[%clk 0:00:04]}  Ke5 {[%clk 0:00:13]} 75. a5 {[%clk 0:00:05]}  Kd6 {[%clk 0:00:13]} 76. Kxe4 {[%clk 0:00:05]}  Nd2+ {[%clk 0:00:13]} 77. Kd3 {[%clk 0:00:05]}  Nb3 {[%clk 0:00:13]} 78. a6 {[%clk 0:00:05]}  Nc5+ {[%clk 0:00:14]} 79. Kxc3 {[%clk 0:00:06]}  Nxa6 {[%clk 0:00:14]} 1/2-1/2


[Site "https://www.chess.com"]

[Event "Titled Tuesday Blitz January 31 Late 2023"]
[White "Kozak, Adam"]
[Black "Zhigalko, Sergei"]
[WhiteFideId "753246"]
[BlackFideId "13502956"]
[WhiteElo "2572"]
[BlackElo "2572"]
[Result "0-1"]
[Round "08"]
[TimeControl "180+2"]
[Date "2023.01.31"]
[WhiteClock "0:00:03"]
[BlackClock "0:00:08"]

1. c4 {[%clk 0:02:59]}  e5 {[%clk 0:02:59]} 2. Nc3 {[%clk 0:03:00]}  Nf6 {[%clk 0:02:59]} 3. Nf3 {[%clk 0:03:00]}  Nc6 {[%clk 0:02:59]} 4. e4 {[%clk 0:03:00]}  Bb4 {[%clk 0:02:59]} 5. d3 {[%clk 0:03:00]}  d6 {[%clk 0:02:59]} 6. a3 {[%clk 0:03:01]}  Ba5 {[%clk 0:02:59]} 7. b4 {[%clk 0:03:01]}  Bb6 {[%clk 0:03:00]} 8. Be2 {[%clk 0:03:01]}  a5 {[%clk 0:02:57]} 9. b5 {[%clk 0:02:55]}  Nd4 {[%clk 0:02:57]} 10. Be3 {[%clk 0:02:50]}  O-O {[%clk 0:02:47]} 11. O-O {[%clk 0:02:49]}  h6 {[%clk 0:02:47]} 12. a4 {[%clk 0:02:44]}  c6 {[%clk 0:02:44]} 13. Rb1 {[%clk 0:02:43]}  Bc5 {[%clk 0:02:44]} 14. Bd2 {[%clk 0:02:28]}  Be6 {[%clk 0:02:34]} 15. Nxd4 {[%clk 0:02:27]}  Bxd4 {[%clk 0:02:35]} 16. Na2 {[%clk 0:02:23]}  d5 {[%clk 0:02:29]} 17. exd5 {[%clk 0:02:22]}  cxd5 {[%clk 0:02:28]} 18. Nc1 {[%clk 0:02:21]}  dxc4 {[%clk 0:02:03]} 19. dxc4 {[%clk 0:02:21]}  Bf5 {[%clk 0:01:57]} 20. Rb3 {[%clk 0:02:08]}  Ne4 {[%clk 0:01:57]} 21. Bd3 {[%clk 0:02:03]}  Qh4 {[%clk 0:01:42]} 22. g3 {[%clk 0:01:55]}  Nxg3 {[%clk 0:01:40]} 23. hxg3 {[%clk 0:01:42]}  Qxg3+ {[%clk 0:01:41]} 24. Kh1 {[%clk 0:01:43]}  Qh4+ {[%clk 0:01:23]} 25. Kg1 {[%clk 0:01:37]}  e4 {[%clk 0:01:11]} 26. Be2 {[%clk 0:01:31]}  Rad8 {[%clk 0:01:10]} 27. Kg2 {[%clk 0:00:53]}  e3 {[%clk 0:01:05]} 28. Bxe3 {[%clk 0:00:43]}  Bh3+ {[%clk 0:00:56]} 29. Kg1 {[%clk 0:00:39]}  Bxe3 {[%clk 0:00:44]} 30. Rxe3 {[%clk 0:00:40]}  Rxd1 {[%clk 0:00:43]} 31. Rxd1 {[%clk 0:00:41]}  Bf5 {[%clk 0:00:33]} 32. Rd5 {[%clk 0:00:36]}  Be6 {[%clk 0:00:30]} 33. Rde5 {[%clk 0:00:33]}  Rd8 {[%clk 0:00:29]} 34. Nd3 {[%clk 0:00:33]}  Qxc4 {[%clk 0:00:25]} 35. b6 {[%clk 0:00:22]}  Qxa4 {[%clk 0:00:08]} 36. Nc5 {[%clk 0:00:23]}  Qa1+ {[%clk 0:00:08]} 37. Kh2 {[%clk 0:00:23]}  Bd5 {[%clk 0:00:06]} 38. f3 {[%clk 0:00:19]}  Bc6 {[%clk 0:00:05]} 39. Bd3 {[%clk 0:00:19]}  g6 {[%clk 0:00:05]} 40. Bc4 {[%clk 0:00:10]}  Qb2+ {[%clk 0:00:03]} 41. Be2 {[%clk 0:00:09]}  Qxb6 {[%clk 0:00:04]} 42. Kg2 {[%clk 0:00:10]}  Qb4 {[%clk 0:00:03]} 43. Nd3 {[%clk 0:00:09]}  Qg4+ {[%clk 0:00:03]} 44. Kf2 {[%clk 0:00:08]}  Qh4+ {[%clk 0:00:04]} 45. Kg2 {[%clk 0:00:08]}  a4 {[%clk 0:00:05]} 46. Nf2 {[%clk 0:00:08]}  Qf6 {[%clk 0:00:03]} 47. Ng4 {[%clk 0:00:08]}  Qg7 {[%clk 0:00:04]} 48. Re7 {[%clk 0:00:07]}  h5 {[%clk 0:00:04]} 49. Ne5 {[%clk 0:00:07]}  Bd5 {[%clk 0:00:04]} 50. Nd7 {[%clk 0:00:06]}  Qh6 {[%clk 0:00:03]} 51. Nf6+ {[%clk 0:00:06]}  Kg7 {[%clk 0:00:04]} 52. Ne8+ {[%clk 0:00:06]}  Rxe8 {[%clk 0:00:04]} 53. Rxe8 {[%clk 0:00:07]}  Qg5+ {[%clk 0:00:05]} 54. Kf2 {[%clk 0:00:07]}  Qh4+ {[%clk 0:00:05]} 55. Kg2 {[%clk 0:00:07]}  Qg5+ {[%clk 0:00:05]} 56. Kf2 {[%clk 0:00:07]}  Bc6 {[%clk 0:00:06]} 57. R8e5 {[%clk 0:00:07]}  Qf4 {[%clk 0:00:05]} 58. Rc5 {[%clk 0:00:06]}  Qd4 {[%clk 0:00:05]} 59. Rc4 {[%clk 0:00:06]}  Qd6 {[%clk 0:00:05]} 60. Rd3 {[%clk 0:00:06]}  Qh2+ {[%clk 0:00:05]} 61. Ke3 {[%clk 0:00:06]}  h4 {[%clk 0:00:05]} 62. Rdd4 {[%clk 0:00:05]}  Qg1+ {[%clk 0:00:05]} 63. Kd2 {[%clk 0:00:05]}  h3 {[%clk 0:00:06]} 64. Rg4 {[%clk 0:00:05]}  h2 {[%clk 0:00:06]} 65. Rc1 {[%clk 0:00:05]}  Qf2 {[%clk 0:00:06]} 66. Rf1 {[%clk 0:00:02]}  Qb6 {[%clk 0:00:04]} 67. Rh4 {[%clk 0:00:02]}  Qb2+ {[%clk 0:00:04]} 68. Ke1 {[%clk 0:00:02]}  a3 {[%clk 0:00:04]} 69. Rxh2 {[%clk 0:00:02]}  a2 {[%clk 0:00:04]} 70. Kf2 {[%clk 0:00:01]}  Qd4+ {[%clk 0:00:05]} 71. Kg3 {[%clk 0:00:01]}  a1=Q {[%clk 0:00:06]} 72. Rxa1 {[%clk 0:00:01]}  Qxa1 {[%clk 0:00:06]} 73. f4 {[%clk 0:00:01]}  Qc3+ {[%clk 0:00:06]} 74. Kf2 {[%clk 0:00:01]}  Qd4+ {[%clk 0:00:06]} 75. Kg3 {[%clk 0:00:01]}  Qe3+ {[%clk 0:00:07]} 76. Kg4 {[%clk 0:00:02]}  Bd7+ {[%clk 0:00:07]} 77. f5 {[%clk 0:00:02]}  Bxf5+ {[%clk 0:00:07]} 78. Kh4 {[%clk 0:00:03]}  Qf4+ {[%clk 0:00:07]} 79. Bg4 {[%clk 0:00:03]}  Qxg4# {[%clk 0:00:08]} 0-1


[Site "https://www.chess.com"]

[Event "Titled Tuesday Blitz January 31 Late 2023"]
[White "Sanal, Vahap"]
[Black "Bryakin, Mikhail"]
[WhiteFideId "6300545"]
[BlackFideId "4165314"]
[WhiteElo "2600"]
[BlackElo "2455"]
[Result "0-1"]
[Round "08"]
[TimeControl "180+2"]
[Date "2023.01.31"]
[WhiteClock "0:00:01"]
[BlackClock "0:00:06"]

1. e4 {[%clk 0:02:59]}  d5 {[%clk 0:02:54]} 2. exd5 {[%clk 0:02:58]}  Qxd5 {[%clk 0:02:55]} 3. Nc3 {[%clk 0:02:58]}  Qe5+ {[%clk 0:02:55]} 4. Be2 {[%clk 0:02:57]}  Bg4 {[%clk 0:02:54]} 5. d4 {[%clk 0:02:58]}  Bxe2 {[%clk 0:02:55]} 6. Ngxe2 {[%clk 0:02:58]}  Qa5 {[%clk 0:02:55]} 7. O-O {[%clk 0:02:57]}  Nf6 {[%clk 0:02:48]} 8. b4 {[%clk 0:02:56]}  Qh5 {[%clk 0:02:48]} 9. Qd3 {[%clk 0:02:54]}  e6 {[%clk 0:02:48]} 10. Bf4 {[%clk 0:02:54]}  Nc6 {[%clk 0:02:41]} 11. a3 {[%clk 0:02:43]}  O-O-O {[%clk 0:02:29]} 12. Rad1 {[%clk 0:02:28]}  Bd6 {[%clk 0:02:18]} 13. Bxd6 {[%clk 0:02:09]}  Rxd6 {[%clk 0:02:16]} 14. Nb5 {[%clk 0:02:09]}  Rd7 {[%clk 0:02:13]} 15. c4 {[%clk 0:02:09]}  Rhd8 {[%clk 0:02:12]} 16. Qe3 {[%clk 0:01:39]}  a6 {[%clk 0:01:55]} 17. Nbc3 {[%clk 0:01:39]}  Ne7 {[%clk 0:01:56]} 18. d5 {[%clk 0:01:36]}  Ng4 {[%clk 0:01:47]} 19. Qg3 {[%clk 0:01:34]}  Nf5 {[%clk 0:01:39]} 20. Qh3 {[%clk 0:01:29]}  Qxh3 {[%clk 0:01:35]} 21. gxh3 {[%clk 0:01:30]}  Ne5 {[%clk 0:01:27]} 22. dxe6 {[%clk 0:01:29]}  Rxd1 {[%clk 0:01:25]} 23. Rxd1 {[%clk 0:01:30]}  Rxd1+ {[%clk 0:01:24]} 24. Nxd1 {[%clk 0:01:30]}  fxe6 {[%clk 0:01:24]} 25. Nb2 {[%clk 0:01:27]}  g5 {[%clk 0:01:15]} 26. Ng3 {[%clk 0:01:22]}  h6 {[%clk 0:01:06]} 27. Ne4 {[%clk 0:01:16]}  b6 {[%clk 0:01:02]} 28. Kg2 {[%clk 0:01:13]}  Kd7 {[%clk 0:00:58]} 29. Nf6+ {[%clk 0:01:13]}  Ke7 {[%clk 0:00:57]} 30. Ne4 {[%clk 0:01:13]}  Nh4+ {[%clk 0:00:44]} 31. Kg3 {[%clk 0:01:12]}  Nf5+ {[%clk 0:00:45]} 32. Kg2 {[%clk 0:01:13]}  Nh4+ {[%clk 0:00:45]} 33. Kf1 {[%clk 0:01:08]}  Nef3 {[%clk 0:00:45]} 34. Ke2 {[%clk 0:01:07]}  Nxh2 {[%clk 0:00:44]} 35. Nd2 {[%clk 0:01:08]}  g4 {[%clk 0:00:43]} 36. Nd3 {[%clk 0:00:54]}  gxh3 {[%clk 0:00:39]} 37. f3 {[%clk 0:00:54]}  Nf5 {[%clk 0:00:24]} 38. Kf2 {[%clk 0:00:50]}  h5 {[%clk 0:00:12]} 39. Kg1 {[%clk 0:00:40]}  Ng4 {[%clk 0:00:13]} 40. fxg4 {[%clk 0:00:41]}  hxg4 {[%clk 0:00:13]} 41. Nf2 {[%clk 0:00:42]}  Ne3 {[%clk 0:00:12]} 42. Kh2 {[%clk 0:00:34]}  Kf6 {[%clk 0:00:13]} 43. Kg3 {[%clk 0:00:33]}  Ke5 {[%clk 0:00:13]} 44. c5 {[%clk 0:00:18]}  Kd4 {[%clk 0:00:11]} 45. c6 {[%clk 0:00:16]}  Kd5 {[%clk 0:00:10]} 46. Kf4 {[%clk 0:00:15]}  h2 {[%clk 0:00:09]} 47. Nh1 {[%clk 0:00:08]}  Nc4 {[%clk 0:00:07]} 48. Nb3 {[%clk 0:00:05]}  Nxa3 {[%clk 0:00:06]} 49. Kxg4 {[%clk 0:00:05]}  Nc2 {[%clk 0:00:05]} 50. Kg3 {[%clk 0:00:04]}  Nxb4 {[%clk 0:00:06]} 51. Kxh2 {[%clk 0:00:05]}  Nxc6 {[%clk 0:00:07]} 52. Kg2 {[%clk 0:00:05]}  Kc4 {[%clk 0:00:07]} 53. Nd2+ {[%clk 0:00:06]}  Kc3 {[%clk 0:00:07]} 54. Ne4+ {[%clk 0:00:06]}  Kd3 {[%clk 0:00:07]} 55. Nhf2+ {[%clk 0:00:06]}  Kd4 {[%clk 0:00:08]} 56. Kf3 {[%clk 0:00:06]}  a5 {[%clk 0:00:07]} 57. Ke2 {[%clk 0:00:06]}  Ne5 {[%clk 0:00:06]} 58. Kd2 {[%clk 0:00:06]}  c5 {[%clk 0:00:07]} 59. Ng5 {[%clk 0:00:02]}  Nc4+ {[%clk 0:00:07]} 60. Kc2 {[%clk 0:00:03]}  e5 {[%clk 0:00:08]} 61. Ne6+ {[%clk 0:00:02]}  Kd5 {[%clk 0:00:08]} 62. Nc7+ {[%clk 0:00:02]}  Kc6 {[%clk 0:00:09]} 63. Ne6 {[%clk 0:00:03]}  Nd6 {[%clk 0:00:05]} 64. Nd3 {[%clk 0:00:02]}  e4 {[%clk 0:00:05]} 65. Ndf4 {[%clk 0:00:02]}  b5 {[%clk 0:00:05]} 66. Kc3 {[%clk 0:00:02]}  a4 {[%clk 0:00:06]} 67. Kc2 {[%clk 0:00:03]}  b4 {[%clk 0:00:06]} 68. Ne2 {[%clk 0:00:03]}  c4 {[%clk 0:00:06]} 69. N6d4+ {[%clk 0:00:02]}  Kd5 {[%clk 0:00:07]} 70. Kd2 {[%clk 0:00:02]}  a3 {[%clk 0:00:07]} 71. Nc2 {[%clk 0:00:02]}  Kc5 {[%clk 0:00:07]} 72. Kc1 {[%clk 0:00:02]}  Nb5 {[%clk 0:00:08]} 73. Ng3 {[%clk 0:00:02]}  b3 {[%clk 0:00:07]} 74. Nxe4+ {[%clk 0:00:03]}  Kd5 {[%clk 0:00:07]} 75. Nd2 {[%clk 0:00:01]}  bxc2 {[%clk 0:00:06]} 76. Kxc2 {[%clk 0:00:02]}  Kc5 {[%clk 0:00:07]} 77. Ne4+ {[%clk 0:00:01]}  Kb4 {[%clk 0:00:07]} 78. Nd2 {[%clk 0:00:02]}  Nd4+ {[%clk 0:00:08]} 79. Kb1 {[%clk 0:00:02]}  Nb3 {[%clk 0:00:08]} 80. Ne4 {[%clk 0:00:01]}  Nc5 {[%clk 0:00:08]} 81. Nd2 {[%clk 0:00:01]}  Na4 {[%clk 0:00:09]} 82. Ka2 {[%clk 0:00:01]}  Nc3+ {[%clk 0:00:10]} 83. Ka1 {[%clk 0:00:01]}  Nb5 {[%clk 0:00:10]} 84. Ne4 {[%clk 0:00:02]}  Kb3 {[%clk 0:00:10]} 85. Nd2+ {[%clk 0:00:02]}  Kc3 {[%clk 0:00:10]} 86. Ne4+ {[%clk 0:00:02]}  Kd4 {[%clk 0:00:11]} 87. Nd2 {[%clk 0:00:02]}  c3 {[%clk 0:00:11]} 88. Nb3+ {[%clk 0:00:03]}  Kd3 {[%clk 0:00:11]} 89. Kb1 {[%clk 0:00:03]}  Nd4 {[%clk 0:00:05]} 90. Nc5+ {[%clk 0:00:03]}  Kc4 {[%clk 0:00:05]} 91. Ne4 {[%clk 0:00:01]}  Kd3 {[%clk 0:00:06]} 0-1


[Site "https://www.chess.com"]